Workbook

Sheet hostel budget
B2: Hostel Budget (September 2012 to August 2013)
B4: average number of children p.m. during the year | C4: 30
B5: estimated number of residential facility will be fully functional | C5: 280 | D5: 25 days for festivals and 30 days off in summer break and 30 days off during 12 weekends
C7: Total | D7: Amount requested | E7: Will raise from Tata Trust, | F7: Notes
C8: Amount | D8: from Asha Stanford | E8: Local Donations in cash / kind
B10: Food Costs
B11: @ Rs. 80 per child per day | C11: =80*280*30 -> 672000 | D11: =C11-E11 -> 497000 | E11: 175000 | F11: will go to ration shops and people to provide materials for a day/week
B13: Venue Costs
B14: @ Rs. 12,000 per month | C14: =12000*12 -> 144000 | D14: =C14-E14 -> 44000 | E14: 100000 | F14: will start from career college campus and shift to our rudimentary land
B16: Salary Costs of Warden cum Teachers
B17: @ Rs. 10000 p.m. for one person | C17: =10000*12 -> 120000 | D17: =C17-E17 -> 88000 | E17: 32000
B18: @ Rs. 10000 p.m. for second teacher | C18: =10000*12 -> 120000 | D18: =C18-E18 -> 72000 | E18: =4000*12 -> 48000 | F18: will draw part-salary from other budget
B19: @Rs.6500 p.m. for warden | C19: =6500*12 -> 78000
B21: Residential arrangements
B22: Mattresses and Blankets | C22: 5000 | D22: =C22-E22 -> 0 | E22: 5000 | F22: additional ones are needed as old mattresses are being run down now
B23: Cupboards | C23: 10000 | D23: 10000 | F23: we have
B24: Mats (Chataes) | C24: 2500 | D24: =C24-E24 -> 0 | E24: 2500
B25: Kitchen Utensils | C25: 3000 | D25: =C25-E25 -> 500 | E25: 2500 | F25: partly have; therefore budgeted less
B26: water purifier | C26: 20000 | D26: 8000 | E26: 12000
B28: Study and Other Arrangements
B29: Study Materials (books, bag, stationery) - Rs. 1000 per child | C29: 30000 | D29: =C29-E29 -> 22000 | E29: 8000 | F29: will go to schools for old bags and stationery donations
B30: Uniforms for school-goers (Rs. 1000 for 5 children) | C30: 5000 | D30: 5000 | E30: 0
B31: Library Books | C31: 10000 | D31: 5000 | E31: 2000
B32: Game Equipments (basketball, football, etc.) | C32: 3000 | D32: 1000 | E32: 2000 | F32: ask people for in-kind donations for this
B33: Musical Instruments | C33: 2000 | D33: 0 | E33: 2000
B34: Film Watching - Projector Charges-once in a month | C34: =1000*12 -> 12000 | D34: 5000 | E34: 7000 | F34: will ask friendly groups for sharing of projector
B35: Printing of Newsletters/diaries | C35: 4000 | D35: 1000 | E35: 3000
B36: Workshops - 0ne workshop in two month/ exposure | C36: 50000 | D36: 30000 | E36: 25000 | F36: take out partly from other budgets
B37: yoga and Meditation Workshops - | C37: 15000 | D37: 0 | E37: =C37 -> 15000
B38: Clothes (winters particularly @ Rs. 500 per child) | C38: 15000 | D38: 8000 | E38: 7000 | F38: ask people for in-kind donations for this
B39: develop kitchen garden and wormi compost th kitchen wast | C39: 15000
B40: medical and other expenditure | C40: 15000
B42: Part-time staff
B43: Counsellor - Rs. 800 per day per week for 32 weeks | C43: =32*800 -> 25600 | D43: =C43-E43 -> 17600 | E43: 8000
B44: Music Teacher - Rs. 500 per day per week - 32 weeks | C44: =500*32 -> 16000 | D44: 7000 | E44: 9000
B45: Volunteers for specific subject and school support(conveyence) | C45: 10000 | D45: 0 | F45: not budgeted
B47: Management and Guidance Costs @ Rs. 5000 p.m. | C47: 60000 | D47: =C47-E47 -> 36000 | E47: 24000 | F47: take out partly from other projects
C48: =SUM(C11:C47) -> 1462100 | D48: =SUM(D11:D47) -> 857100 | E48: =SUM(E11:E47) -> 489000
B49: Administrative Costs
B50: Communications @ Rs. 1500 p.m. | C50: =1200*12 -> 14400 | D50: =C50-E50 -> 10800 | E50: =300*12 -> 3600 | F50: already being drawn in excess from other projects
B51: Travel for camp and other volunteers @ Rs. 3000 p.m. | C51: =3000*12 -> 36000 | D51: 26400
B52: Accountant - 1 day/week salary @ Rs. 900 per day | C52: =900*365/7 -> 46928.57143 | D52: 36500
B53: Office Rent and other costs @ Rs. 1000 p.m. | C53: =1000*12 -> 12000 | D53: 12000
B55: Total | C55: =C48+C50+C51+C52+C53 -> 1571428.571 | D55: =D48+D50+D51+D52+D53 -> 942800 | E55: =E48+E50 -> 492600

Sheet Sheet3
A1: Hostel Budget (September 2012 to August 2013)
A3: average number of children p.m. during the year | B3: 30
A4: estimated number of residential facility will be fully functional | B4: 280
B6: Total
B7: Amount
A9: Food Costs
A10: @ Rs. 70 per child per day | B10: =70*280*30 -> 588000
A12: Venue Costs
A13: @ Rs. 10,000 per month | B13: =10000*12 -> 120000
A15: Salary Costs of Warden cum Teachers
A16: @ Rs. 10000 p.m. for one person | B16: =10000*12 -> 120000
A17: @ Rs. 10000 p.m. for second teacher | B17: =10000*12 -> 120000
A18: @Rs.6500 p.m. for warden | B18: =6500*12 -> 78000
A20: Residential arrangements
A21: Mattresses and Blankets | B21: 5000
A23: Mats (Chataes) | B23: 2500
A24: Kitchen Utensils | B24: 3000
A25: water tank/ pipe | B25: 5000
A27: Study and Other Arrangements
A28: Study Materials (books, bag, stationery) - Rs. 900 per child | B28: 27000
A29: Uniforms for school-goers (Rs. 1000 for 5 children) | B29: 5000
A30: Library Books | B30: 10000
A31: Game Equipments (basketball, football, etc.) | B31: 3000
A32: Musical Instruments | B32: 2000
A33: Film Watching - Projector Charges-once in a month | B33: 5000
A34: Printing of Newsletters/diaries | B34: 4000
A35: Workshops - 0ne workshop in two month/ exposure | B35: 30000
A36: yoga and Meditation Workshops - | B36: 8000
A37: Clothes (winters particularly @ Rs. 400 per child) | B37: 12000
A38: develop kitchen garden and wormi compost th kitchen wast | B38: 5000
A39: medical and other expenditure | B39: 10000
A41: Part-time staff
A42: Counsellor - Rs. 800 per day twice in a month for | B42: =20*800 -> 16000
A43: Music Teacher - Rs. 500 per day per week - 32 weeks | B43: =500*32 -> 16000
A44: Volunteers for specific subject and school support(conveyence)
A46: Management and Guidance Costs @ Rs. 4500 p.m. | B46: =4500*12 -> 54000
B47: =SUM(B10:B46) -> 1248500
A48: Administrative Costs
A49: Communications @ Rs. 1000 p.m. | B49: 12000
A50: Travel for camp and other volunteers @ Rs. 2500 p.m. | B50: =2500*12 -> 30000
A51: Accountant - 1 day/week salary @ Rs. 700 per day | B51: =700*365/7 -> 36500
A52: Office Rent and other costs @ Rs. 1000 p.m. | B52: =1000*12 -> 12000
A54: Total | B54: =B47+B49+B50+B51+B52 -> 1339000
